Cogmind - Beta 15 @@@ ROGUE MODE // 2025.09.21 @ 11:06:50 Player: Blue Result: Destroyed by P-70 Sage with High-powered Shock Rifle Performance ------------- Evolutions (5) 2500 Regions Visited (16) 3200 Robots Destroyed (239) 1195 Value Destroyed (9717) 9717 Prototype IDs (48) 960 Alien Tech Used (0) 0 Bonus (3813) 3813 TOTAL SCORE: 21385 Bonus ------- High Alert Combat Kills 771 Follower Combat Kills 291 Aligned with FarCom 300 MAIN.C Attacked Warlord 500 Warlord Defense Kills 2044 Friendly Fire -93 Cogmind --------- Core Integrity 0/1000 Matter 300/300 Energy 98/100 System Corruption 5% Temperature Cool (0) Movement Core (50) Location -5/Warlord Parts ------- > --- POWER (2) -------- (None) > --- PROPULSION (4) --- (None) > --- UTILITY (7) ------ (None) > --- WEAPON (4) ------- (None) > --- INVENTORY (5) ---- Hybrid Deuterium Engine Matter Compressor (250) Hardened Heavy Armor Plating Phase Cannon Peak State ------------ > --- POWER ------------ Hybrid Deuterium Engine Neutrino Core > --- PROPULSION ------- Light Treads Armored Treads Armored Treads Armored Leg > --- UTILITY ---------- Advanced Cooling System High-capacity Storage Unit Improved Particle Charger Layered Heavy Armor Plating Force Field Improved System Shield > --- WEAPON ----------- Vortex Driver Magnetic Acceleration Cannon Mass Driver Heavy Shock Bomb Launcher > --- INVENTORY -------- Improved Deuterium Engine Hybrid Deuterium Engine Fission Core Thunder Leg Improved Heat Sink Improved Cooling System Large Storage Unit Matter Compressor Phase Shifter Hardened Heavy Armor Plating Force Field Force Field High-powered Tractor Beam Proton Cannon Phase Cannon Heavy Phase Cannon Mass Driver Impact Mace [Rating: 90] Favorites ----------- Power Hybrid Deuterium Engine Engine Hybrid Deuterium Engine Power Core Enhanced Nuclear Core Reactor Cold Fusion Reactor Propulsion Armored Treads Treads Armored Treads Leg Armored Leg Hover Unit Aerolev Unit Flight Unit Improved VTOL Module Utility Large Storage Unit Device Improved Particle Charger Storage Large Storage Unit Processor Advanced Visual Processing Unit Hackware Improved System Shield Protection Improved Medium Armor Plating Weapon Heavy Ion Cannon Energy Gun Beamcaster Energy Cannon Heavy Ion Cannon Ballistic Gun Gauss Rifle Ballistic Cannon Magnetic Acceleration Cannon Launcher Heavy Shock Bomb Launcher Special Weapon RU-N14's Throwing Claymores v3 Impact Weapon Impact Mace Build | -11 -10 -10 -9 -9 -9 -8 -8 -8 -7 -7 -7 -6 -5 -5 -5 -5 ------- Run | Yrd Mat Min Mat Min Exi Min Mat Sto Fac Low Low Fac Fac Upp Upp War Slots Evolved 10 | . . . 2 . . . 2 . 2 . . 2 2 . . . Power 1 | . . . . . . . . . 1 . . . . . . . Propulsion 2 | . . . . . . . 1 . . . . 1 . . . . Utility 5 | . . . 1 . . . 1 . 1 . . 1 1 . . . Weapon 2 | . . . 1 . . . . . . . . . 1 . . . Parts Attached 146 | 7 2 . 7 1 . 1 7 29 24 8 . 41 13 2 . 4 Power 12 | 1 . . 1 . . . . 3 3 . . 2 2 . . . Engine 9 | 1 . . 1 . . . . 3 2 . . 1 1 . . . Core 2 | . . . . . . . . . 1 . . . 1 . . . Reactor 1 | . . . . . . . . . . . . 1 . . . . Propulsion 26 | 2 . . 1 . . . 4 5 5 2 . 5 . 1 . 1 Treads 22 | 2 . . 1 . . . 4 3 5 2 . 5 . . . . Leg 2 | . . . . . . . . . . . . . . 1 . 1 Wheel . | . . . . . . . . . . . . . . . . . Hover 1 | . . . . . . . . 1 . . . . . . . . Flight 1 | . . . . . . . . 1 . . . . . . . . Utility 55 | 2 1 . 2 1 . . 3 7 8 2 . 23 6 . . . Device 22 | 1 . . 1 . . . 1 4 3 1 . 10 1 . . . Storage 5 | 1 1 . . . . . . . 1 . . . 2 . . . Processor 4 | . . . . . . . . . . 1 . 3 . . . . Hackware 4 | . . . . . . . . . . . . 3 1 . . . Protection 20 | . . . 1 1 . . 2 3 4 . . 7 2 . . . Artifact . | . . . . . . . . . . . . . . . . . Weapon 53 | 2 1 . 3 . . 1 . 14 8 4 . 11 5 1 . 3 Energy Gun 13 | 1 . . 1 . . . . 5 1 2 . 2 . . . 1 Energy Cannon 13 | . . . 1 . . . . 1 2 1 . 4 3 . . 1 Ballistic Gun 6 | 1 . . . . . 1 . 2 1 . . . 1 . . . Ballistic Cannon 8 | . 1 . 1 . . . . 1 3 . . 1 . 1 . . Launcher 9 | . . . . . . . . 4 . 1 . 3 1 . . . Special Weapon 1 | . . . . . . . . . . . . . . . . 1 Impact Weapon 3 | . . . . . . . . 1 1 . . 1 . . . . Slashing Weapon . | . . . . . . . . . . . . . . . . . Piercing Weapon . | . . . . . . . . . . . . . . . . . Special Melee Weapon . | . . . . . . . . . . . . . . . . . Unidentified Prototypes 23 | . . . 1 . . . . 9 6 . . 4 1 . . 2 Parts Lost 24 | . . . . . . . 1 2 2 2 . 8 1 . . 8 Power 3 | . . . . . . . . . . 1 . . . . . 2 Propulsion 2 | . . . . . . . . . . . . . 1 . . 1 Utility 13 | . . . . . . . 1 2 2 . . 6 . . . 2 Weapon 6 | . . . . . . . . . . 1 . 2 . . . 3 Highest Loss Streak 8 | . . . . . . . 1 1 1 1 . 5 1 . . 8 To Critical Strikes . | . . . . . . . . . . . . . . . . . Average Backups 15 | 1 4 6 13 14 15 15 13 14 14 13 14 13 18 18 18 17 Power 2 | . 1 1 1 1 1 1 1 1 2 1 1 2 3 3 3 2 Propulsion 1 | 1 2 2 3 2 2 2 1 2 3 3 4 . 1 1 1 . Utility 5 | . . 1 2 4 5 6 5 4 4 4 4 5 8 9 9 8 Weapon 5 | . . 2 6 6 6 6 6 5 5 4 5 5 4 5 5 4 Tool/Special . | . . . . . . . . . . . . . . . . . Unused Backups 29 | . . . 5 2 1 . 1 3 4 . . 3 4 . . 6 Power 5 | . . . 1 . . . 1 . 1 . . . 2 . . . Propulsion 3 | . . . 1 1 . . . 1 . . . . . . . . Utility 12 | . . . 1 . . . . 1 2 . . 2 1 . . 5 Weapon 9 | . . . 2 1 1 . . 1 1 . . 1 1 . . 1 Tool/Special . | . . . . . . . . . . . . . . . . . Average Slot Usage (%) 97 | . 100 100 94 100 100 100 99 98 99 99 100 98 94 94 94 92 Engine 8 | . 14 14 11 11 11 11 9 8 11 7 15 8 5 5 5 4 Core 1 | . . . . . . . . . 2 6 . . 1 5 5 4 Reactor 1 | . . . . . . . . . . . . 4 3 . . . Treads 23 | . 28 28 22 22 22 22 27 26 23 22 23 25 22 17 17 16 Device 17 | . 14 14 11 11 11 11 17 17 22 17 15 16 16 17 17 16 Storage 6 | . 14 14 11 11 11 11 9 9 7 7 7 6 5 5 5 4 Processor 1 | . . . . . . . . . . 4 7 5 . . . . Hackware 2 | . . . . . . . . . . . . 4 3 5 5 4 Protection 6 | . . . 6 11 11 11 9 8 7 7 7 5 7 5 5 4 Energy Gun 1 | . 4 . 2 . . . . 5 2 . . . . . . . Energy Cannon 11 | . . . 5 11 11 11 9 7 12 18 23 12 17 13 7 4 Ballistic Gun 1 | . 14 14 5 . . 2 9 4 1 . . . . . . . Ballistic Cannon 7 | . 9 14 18 22 22 19 9 6 5 . . 4 4 8 11 10 Launcher 1 | . . . . . . . . 1 . 3 . 1 . . 3 4 Peak Build Rating 90 | 7 7 7 17 18 18 21 31 41 60 60 54 70 85 86 86 90 Average Rating 55 | 5 7 7 12 17 18 18 29 34 52 56 54 61 77 85 85 84 On Entrance 37 | . 7 7 7 17 18 18 21 31 35 60 54 54 60 81 85 86 Naked Turns 28 | . . . . . . . . . . . . . . . . 28 Heaviest Build 134 | 15 31 31 44 44 44 45 46 54 69 68 66 98 134 130 130 130 Greatest Support 90 | 40 40 40 43 43 43 43 63 63 84 84 70 90 80 60 60 60 Greatest Overweight (x) 3 | 3 . . 1 1 1 1 . 1 1 1 . 1 2 2 2 2 Average Overweight (x) . | . . . . 1 1 1 . . . . . . 1 2 2 1 Largest Inventory Capacity 20 | 8 15 15 15 15 15 15 15 15 15 15 15 15 20 20 20 20 Average Capacity 16 | 7 14 15 15 15 15 15 15 15 15 15 15 15 19 20 20 19 Most Carried 20 | 3 6 6 15 15 15 15 15 15 15 15 14 15 20 19 19 20 Average Carried 15 | 1 4 6 13 14 15 15 13 14 14 13 14 13 18 19 19 18 Final Capacity 20 | 8 15 15 15 15 15 15 15 15 15 15 15 15 20 20 20 5 Final Carried 20 | 3 6 6 15 15 15 15 15 15 15 14 14 13 20 19 19 5 Class Distribution -------------------- 64% | Tank 15% | Skirmisher 6% | Mutant 6% | Hacker-Skirmisher 4% | Gunner Dominant Class ---------------- Mutant | -10/Materials Mutant | -10/Mines Tank | -9/Materials Tank | -9/Mines Tank | -9/Exiles Skirmisher | -8/Mines Skirmisher | -8/Materials Tank | -8/Storage Tank | -7/Factory Tank | -7/Lower Caves Tank | -7/Lower Caves Skirmisher | -6/Factory Tank | -5/Factory Tank | -5/Upper Caves Tank | -5/Upper Caves Tank | -5/Warlord Resources | -11 -10 -10 -9 -9 -9 -8 -8 -8 -7 -7 -7 -6 -5 -5 -5 -5 ----------- Run | Yrd Mat Min Mat Min Exi Min Mat Sto Fac Low Low Fac Fac Upp Upp War Matter Collected 6925 | 273 . . 508 74 . 34 259 1006 1673 294 . 1963 252 185 214 190 Remotely . | . . . . . . . . . . . . . . . . . Salvage Created 9465 | 14 . . 367 115 . 28 540 962 1945 408 . 2550 655 346 389 1146 Parts 474 | 5 . . 17 13 . 1 42 48 108 11 . 125 40 11 18 35 Haulers Intercepted 7 | . . . 3 . . . . 3 1 . . . . . . . Recyclers Shooed 8 | . . . . . . . . . 2 . . 3 3 . . . Parts Field Recycled . | . . . . . . . . . . . . . . . . . Retrieved Matter . | . . . . . . . . . . . . . . . . . Parts Self-Destructed 21 | . . . . . . . . . . 9 . . . 6 6 . Prevented 14 | . . . . . . . . . . . . . . 5 9 . Kills | -11 -10 -10 -9 -9 -9 -8 -8 -8 -7 -7 -7 -6 -5 -5 -5 -5 ------- Run | Yrd Mat Min Mat Min Exi Min Mat Sto Fac Low Low Fac Fac Upp Upp War Combat Hostiles Destroyed 186 | . . . 10 5 . 1 11 18 35 8 . 51 11 5 11 20 Melee 2 | . . . . . . . . . 1 . . 1 . . . . Guns 15 | . . . 1 . . . 6 8 . . . . . . . . Cannons 98 | . . . 9 5 . 1 4 6 30 4 . 29 4 1 3 2 AOE 52 | . . . . . . . 1 4 2 3 . 18 6 1 7 10 Classes Destroyed 19 | 1 . . 5 1 . 1 3 . 2 1 . 4 . . . 1 Worker 14 | . . . . . . . 4 1 1 . . 7 1 . . . Builder 4 | . . . . . . . . . . . . 3 1 . . . Tunneler 3 | 1 . . . . . . . . 1 . . 1 . . . . Hauler 7 | . . . 3 . . . . 3 1 . . . . . . . Recycler 7 | . . . 1 . . . . . 3 . . 2 1 . . . Mechanic 2 | . . . . . . . . . 1 . . 1 . . . . Operator 3 | . . . . . . . . . . . . 3 . . . . Watcher 13 | . . . . . . . 1 1 7 . . 4 . . . . Swarmer 40 | . . . 5 3 . . . . . 1 . 13 4 . 9 5 Grunt 66 | . . . 2 1 . . 7 9 16 2 . 11 1 3 . 14 Brawler 3 | . . . . 1 . . . . . 1 . 1 . . . . Duelist 5 | . . . . . . . 1 . . 1 . 1 . 1 1 . Sentry 29 | . . . 3 . . . 3 7 5 1 . 8 1 . 1 . Specialist 2 | . . . . . . . . . . . . 2 . . . . Hunter 10 | . . . . . . 1 . 2 1 1 . 4 1 . . . Programmer 28 | . . . . . . . . . 13 . . 10 4 1 . . Heavy 1 | . . . . . . . . . . . . 1 . . . . Executioner 1 | . . . . . . . . . . . . . . . . 1 Packrat 1 | . . . . . . . . . . 1 . . . . . . Mutant 1 | . . . . . . . . . . 1 . . . . . . Best Kill Streak 9 | 1 . . 5 3 . 1 6 5 5 6 . 6 4 4 6 9 Combat Bots Only 9 | . . . 5 3 . 1 3 4 4 6 . 5 4 4 6 9 Max Kills in Single Turn 4 | 1 . . 3 1 . 1 4 4 3 2 . 3 3 1 2 4 Gunslinging . | . . . . . . . . . . . . . . . . . Exploded 4 | . . . . . . . 1 3 1 2 . 3 2 1 2 4 Melee 1 | . . . . . . . . . 1 . . 1 . . . . Uniques/NPCs Destroyed . | . . . . . . . . . . . . . . . . . Combat | -11 -10 -10 -9 -9 -9 -8 -8 -8 -7 -7 -7 -6 -5 -5 -5 -5 -------- Run | Yrd Mat Min Mat Min Exi Min Mat Sto Fac Low Low Fac Fac Upp Upp War Hostile Shots Fired 1121 | . . . 37 8 . 10 40 71 243 73 . 375 45 17 31 171 Missed 340 | . . . 6 3 . 3 11 19 72 24 . 109 12 5 10 66 Hits 781 | . . . 31 5 . 7 29 52 171 49 . 266 33 12 21 105 Melee 7 | . . . . . . . . . . 2 . 1 . . . 4 Projectile 774 | . . . 31 5 . 7 29 52 171 47 . 265 33 12 21 101 Critical Strikes 27 | . . . . . . . . 2 4 2 . 11 2 . . 6 Part Disruptions 6 | . . . . . . . . . 1 . . 4 1 . . . Damage Taken 11358 | . . . 384 48 . 77 516 612 1839 933 . 4042 466 155 217 2069 Core 1798 | . . . 22 10 . 17 93 34 160 100 . 352 7 . 25 978 Absorbed by Shields 2100 | . . . . . . . . 193 477 . . 339 330 96 232 433 Redirected to Shielding 18 | . . . . . . . . . 18 . . . . . . . Regen/Repaired (Parts) 1746 | . . . . . . . . 339 244 . . 861 . . . 302 Core Remaining (%) 80 | 100 . 100 . . . 87 . 76 . . 62 58 . . . . Volleys Fired 518 | 1 . . 34 8 . 3 26 50 133 31 . 158 30 10 18 16 Largest 4 | 2 . . 3 3 . 3 3 3 3 3 . 3 4 4 4 3 Hottest 309 | 60 . . 131 131 . 131 129 187 187 220 . 220 309 309 227 181 Shots Fired 1197 | 2 . . 77 24 . 9 78 122 321 73 . 350 65 22 32 22 Gun 125 | 2 . . 9 . . . 26 61 27 . . . . . . . Cannon 997 | . . . 68 24 . 9 52 58 294 67 . 317 63 17 19 9 Launcher 75 | . . . . . . . . 3 . 6 . 33 2 5 13 13 Special . | . . . . . . . . . . . . . . . . . Kinetic 445 | 1 . . 68 16 . 6 52 49 132 . . 79 16 5 15 6 Thermal 676 | . . . 9 8 . 3 26 70 189 67 . 238 47 12 4 3 Explosive 31 | . . . . . . . . 3 . 6 . 22 . . . . Electromagnetic 45 | 1 . . . . . . . . . . . 11 2 5 13 13 Robot Hit Streak 20 | 1 . . 15 2 . 3 12 7 14 4 . 20 6 4 8 8 Robot Miss Streak 7 | . . . 3 2 . 2 4 5 7 6 . 3 3 3 4 2 Penetration Max 1 | . . . . . . . 1 . . . . . . . . . Secondary Targets . | . . . . . . . . . . . . . . . . . Shots Hit Robots 653 | 1 . . 45 9 . 5 47 66 176 32 . 204 25 11 17 15 Core Hits 349 | 1 . . 15 5 . 2 25 40 63 16 . 107 16 8 13 38 Critical Kills 5 | . . . . . . . . . 2 1 . 1 1 . . . Critical Parts Destroyed 3 | . . . . . . . . . . . . 3 . . . . Critical Strikes 21 | . . . . . . . . 1 6 1 . 10 2 1 . . Burn 1 | . . . . . . . . 1 . . . . . . . . Meltdown 5 | . . . . . . . . . 2 1 . 1 1 . . . Blast 12 | . . . . . . . . . 4 . . 6 1 1 . . Smash 3 | . . . . . . . . . . . . 3 . . . . Melee Attacks 29 | . . . . . . . . 2 10 . . 17 . . . . Impact 29 | . . . . . . . . 2 10 . . 17 . . . . Slashing . | . . . . . . . . . . . . . . . . . Piercing . | . . . . . . . . . . . . . . . . . Sneak Attacks 1 | . . . . . . . . . . . . 1 . . . . Combat Hostiles . | . . . . . . . . . . . . . . . . . Follow-up Attacks . | . . . . . . . . . . . . . . . . . Damage Inflicted 27420 | 15 . 8 899 203 . 85 1592 2341 5316 1272 . 10232 1742 590 965 2160 Guns 1648 | 15 . . 26 . . . 454 758 395 . . . . . . . Cannons 16081 | . . . 873 203 . 85 659 751 4561 805 . 6407 1038 257 295 147 Explosions 9077 | . . . . . . . 479 831 306 466 . 3324 655 333 670 2013 Melee 446 | . . . . . . . . . . . . 446 . . . . Ramming 168 | . . 8 . . . . . 1 54 1 . 55 49 . . . Kinetic 6051 | . . . 755 102 . 44 783 502 1578 . . 1749 67 144 180 147 Thermal 12560 | . . . 144 101 . 41 330 1007 3599 805 . 4741 1113 113 199 367 Explosive 4968 | . . . . . . . 479 831 85 466 . 2742 365 . . . Electromagnetic 3227 | 15 . . . . . . . . . . . 499 148 333 586 1646 Impact 446 | . . . . . . . . . . . . 446 . . . . Slashing . | . . . . . . . . . . . . . . . . . Piercing . | . . . . . . . . . . . . . . . . . Highest Corruption 9 | . . . . . . . . . 9 9 4 6 1 1 3 5 Average Corruption 4 | . . . . . . . . . 5 5 4 3 1 1 1 2 Corruption Purged 12 | . . . . . . . . . . 5 . 7 . . . . Corruption Blocked . | . . . . . . . . . . . . . . . . . Effects 269 | . . . . . . . . . 144 36 2 71 2 10 2 2 Message Errors 68 | . . . . . . . . . 36 8 1 18 1 2 1 1 Matter Fused 70 | . . . . . . . . . 33 12 1 19 . 4 1 . Heat Flow Errors 31 | . . . . . . . . . 17 3 . 9 . 1 . 1 Energy Discharges 28 | . . . . . . . . . 14 3 . 9 1 1 . . Parts Rejected 1 | . . . . . . . . . . . . 1 . . . . Parts Fused 1 | . . . . . . . . . 1 . . . . . . . Data Loss (minor) 31 | . . . . . . . . . 24 3 . 4 . . . . Data Loss (major) 10 | . . . . . . . . . 3 2 . 4 . 1 . . Misfires 7 | . . . . . . . . . 3 3 . 1 . . . . Alerts 11 | . . . . . . . . . 6 1 . 4 . . . . Weapon Failures 11 | . . . . . . . . . 7 1 . 2 . 1 . . Overload Shots 6 | . . . . . . . . . . . . 6 . . . . Overflow Damage 1453 | . . . . . . . 78 4 244 55 . 834 104 . 78 56 Projectiles 632 | . . . . . . . 5 . 209 55 . 286 20 . 57 . Explosions 517 | . . . . . . . 73 4 35 . . 251 77 . 21 56 Melee 304 | . . . . . . . . . . . . 297 7 . . . Knockbacks 61 | . . . 6 1 . 1 7 5 24 . . 12 . 1 3 1 Impact 3 | . . . . . . . . . 1 . . 2 . . . . Kinetic 53 | . . . 5 1 . 1 5 5 21 . . 10 . 1 3 1 Secondary 5 | . . . 1 . . . 2 . 2 . . . . . . . Self-Inflicted Damage 789 | . . . . . . . 63 10 150 18 . 201 188 16 104 39 Shots 23 | . . . . . . . 1 1 3 2 . 5 2 1 6 2 Rammed 21 | . . 1 . . . . . 1 8 1 . 6 4 . . . Targets Rammed 23 | . . 1 . . . . . 1 9 1 . 7 4 . . . Kicked . | . . . . . . . . . . . . . . . . . Crushed 2 | . . . . . . . . . 1 . . 1 . . . . Highest Temperature 576 | . . . 228 42 . 12 70 509 319 242 . 360 576 410 133 240 Average Temperature 96 | . . . 57 11 . 6 24 122 91 110 . 90 187 198 58 68 Received Heat Transfer 2265 | . . . 96 18 . . 243 206 405 255 . 705 4 28 12 293 Effects 13 | . . . . . . . . 2 3 . . 2 6 . . . Shutdowns 1 | . . . . . . . . . . . . . 1 . . . Energy Bleed 5 | . . . . . . . . 1 3 . . . 1 . . . Interference 5 | . . . . . . . . . . . . 2 3 . . . Matter Decay 1 | . . . . . . . . 1 . . . . . . . . Damage (minor) 1 | . . . . . . . . . . . . . 1 . . . Siege Activations . | . . . . . . . . . . . . . . . . . Martial Activations . | . . . . . . . . . . . . . . . . . Shielding Activations . | . . . . . . . . . . . . . . . . . Robots Disrupted . | . . . . . . . . . . . . . . . . . Combat Hostiles . | . . . . . . . . . . . . . . . . . Robots Corrupted 15 | . . . . . . . . . . . . 3 . 3 1 8 Combat Hostiles 14 | . . . . . . . . . . . . 2 . 3 1 8 Parts Fried 20 | . . . . . . . . . 3 . . 4 . 3 3 7 Impact Corruptions 12 | . . . . . . . . . 1 . . 10 1 . . . Robots Melted 5 | . . . . . . . . . 2 1 . 1 1 . . . Combat Hostiles 5 | . . . . . . . . . 2 1 . 1 1 . . . Parts Melted 31 | . . . . . . . . 3 9 3 . 9 6 . 1 . Heat Transferred 16598 | . . . 259 185 . 74 592 1665 4751 1199 . 5933 966 124 250 600 Parts Sabotaged . | . . . . . . . . . . . . . . . . . Parts Stolen . | . . . . . . . . . . . . . . . . . Parts Stripped . | . . . . . . . . . . . . . . . . . Power Chain Reactions 5 | . . . . . . . . . . . . . . . 1 4 Alert | -11 -10 -10 -9 -9 -9 -8 -8 -8 -7 -7 -7 -6 -5 -5 -5 -5 ------- Run | Yrd Mat Min Mat Min Exi Min Mat Sto Fac Low Low Fac Fac Upp Upp War Maximum Alert Level 4 | . . . 1 . . . . 1 4 . . 3 2 . . . Low Security (%) 52 | 100 100 100 94 100 . 100 100 50 49 . . 43 26 . . . Level 1 21 | . . . 5 . . . . 49 13 . . 18 62 . . . Level 2 18 | . . . . . . . . . 20 . . 32 11 . . . Level 3 5 | . . . . . . . . . 12 . . 5 . . . . Level 4 1 | . . . . . . . . . 4 . . . . . . . Level 5 . | . . . . . . . . . . . . . . . . . High Security . | . . . . . . . . . . . . . . . . . Max Security . | . . . . . . . . . . . . . . . . . Peak Influence 1248 | 5 12 . 288 169 . 31 190 341 1248 . . 955 479 . . . Initial 467 | . . . . 109 . . . 76 35 . . 220 467 . . . Average 270 | . . . 79 77 . 3 48 155 354 . . 309 261 . . . Influence Increases 7445 | 5 12 . 513 151 . 31 355 796 1627 171 . 2149 620 120 345 550 Destroy 0b10 Robot/C 3940 | . . . 340 100 . 20 220 440 700 160 . 1020 220 100 220 400 Destroy 0b10 Robot/NC 270 | 5 . . 25 . . . 25 25 70 . . 105 15 . . . Destroy Leader 992 | . . . 98 20 . 10 52 148 256 10 . 318 40 20 20 . Allied During Kill 37 | . . . 17 . . . . 19 . 1 . . . . . . Trap Triggered on 0b10 190 | . . . . . . . . 10 160 . . 20 . . . . Successful Hack 262 | . 12 . . . . . 8 3 90 . . 105 44 . . . Disable Machine 555 | . . . . . . . 30 105 150 . . 165 105 . . . Destroy Structure 689 | . . . 3 1 . 1 20 46 111 . . 311 196 . . . Partial Spotted 15 | . . . . . . . . . . . . 15 . . . . Lose Combat Pursuer 495 | . . . 30 30 . . . . 90 . . 90 . . 105 150 Influence Decreases 7067 | 5 12 . 233 431 . 31 173 900 457 949 120 1544 1114 552 173 373 Entered New Map 1870 | . . . . 171 . . . 106 43 463 90 130 488 172 6 201 Time Decay 3979 | 5 12 . 213 260 . 31 163 436 394 446 30 734 616 380 167 92 Lost Part 240 | . . . . . . . 10 20 20 20 . 80 10 . . 80 Lost Ally 80 | . . . 20 . . . . 40 . 20 . . . . . . Purge Threat 898 | . . . . . . . . 298 . . . 600 . . . . Squads Dispatched 61 | . 3 . 1 . . . 1 7 22 . . 23 4 . . . Investigation 17 | . 1 . 1 . . . . 2 8 . . 5 . . . . Extermination 24 | . . . . . . . . . 12 . . 9 3 . . . Reinforcement 16 | . 2 . . . . . 1 3 2 . . 7 1 . . . Assault 3 | . . . . . . . . 2 . . . 1 . . . . Garrison 1 | . . . . . . . . . . . . 1 . . . . Intercept . | . . . . . . . . . . . . . . . . . Searches Triggered . | . . . . . . . . . . . . . . . . . Construction Impeded 5 | . . . . . . . . . 2 . . 2 1 . . . Haulers Reinforced . | . . . . . . . . . . . . . . . . . Active Scanning Responses . | . . . . . . . . . . . . . . . . . Cargo Convoy Interrupts 1 | . . . . . . . . . . . . 1 . . . . Stealth | -11 -10 -10 -9 -9 -9 -8 -8 -8 -7 -7 -7 -6 -5 -5 -5 -5 --------- Run | Yrd Mat Min Mat Min Exi Min Mat Sto Fac Low Low Fac Fac Upp Upp War Distress Signals 14 | . . . 3 . . . 2 3 4 . . 1 . . . 1 Communications Jammed . | . . . . . . . . . . . . . . . . . Distress Signals . | . . . . . . . . . . . . . . . . . Times Spotted 307 | . 2 . 22 8 . 1 15 32 51 8 . 74 11 5 16 62 Peak Tracking Total 35 | . 3 . 6 4 . 1 4 5 5 6 . 4 4 4 5 35 Tactical Retreats 17 | . . . 2 1 . . . . 3 . . 3 . . 4 4 Traps | -11 -10 -10 -9 -9 -9 -8 -8 -8 -7 -7 -7 -6 -5 -5 -5 -5 ------- Run | Yrd Mat Min Mat Min Exi Min Mat Sto Fac Low Low Fac Fac Upp Upp War Traps Triggered 18 | . 1 . 1 . . . . 5 7 . . 4 . . . . Indirectly 1 | . . . . . . . . . . . . 1 . . . . Trap Hack Attempts . | . . . . . . . . . . . . . . . . . Triggered . | . . . . . . . . . . . . . . . . . Disarmed . | . . . . . . . . . . . . . . . . . Reprogrammed . | . . . . . . . . . . . . . . . . . Reused 19 | . . . . . . . . 1 16 . . 2 . . . . Traps Reconfigurated 36 | . . . . . . . . 2 30 . . 4 . . . . Traps Extracted . | . . . . . . . . . . . . . . . . . Installed . | . . . . . . . . . . . . . . . . . Triggered 19 | . . . . . . . . 1 16 . . 2 . . . . Machines | -11 -10 -10 -9 -9 -9 -8 -8 -8 -7 -7 -7 -6 -5 -5 -5 -5 ---------- Run | Yrd Mat Min Mat Min Exi Min Mat Sto Fac Low Low Fac Fac Upp Upp War Machines Disabled 41 | . . . . . . . 2 7 10 2 . 11 7 . . 2 Max in Single Turn 4 | . . . . . . . 1 1 2 1 . 4 4 . . 1 Garrison Access 2 | . . . . . . . . . 1 . . . 1 . . . Machines Repaired . | . . . . . . . . . . . . . . . . . Machines Dismantled . | . . . . . . . . . . . . . . . . . Machines Sabotaged . | . . . . . . . . . . . . . . . . . Overloaded Fab Kills . | . . . . . . . . . . . . . . . . . Hacking | -11 -10 -10 -9 -9 -9 -8 -8 -8 -7 -7 -7 -6 -5 -5 -5 -5 --------- Run | Yrd Mat Min Mat Min Exi Min Mat Sto Fac Low Low Fac Fac Upp Upp War Machines Accessed 62 | . 2 . 1 . 1 . 1 7 16 . . 18 9 1 . 6 Terminals 29 | . 1 . 1 . . . 1 5 8 . . 9 4 . . . Fabricators 2 | . . . . . . . . . . . . 2 . . . . Repair Stations 10 | . . . . . . . . 2 3 . . 3 2 . . . Recycling Units 5 | . 1 . . . . . . . 1 . . 2 1 . . . Scanalyzers 5 | . . . . . . . . . 2 . . 2 1 . . . Garrison Access 3 | . . . . . . . . . 2 . . . 1 . . . Total Hacks 183 | . 4 . 4 . 1 . 2 25 47 . . 71 22 1 . 6 Successful 101 | . 3 . . . 1 . 1 14 26 . . 40 9 1 . 6 Failed 82 | . 1 . 4 . . . 1 11 21 . . 31 13 . . . Catastrophic 18 | . . . . . . . 1 2 6 . . 6 3 . . . Database Lockouts . | . . . . . . . . . . . . . . . . . Manual 65 | . . . . . 1 . 2 5 22 . . 27 8 . . . Terminals 92 | . 3 . 4 . . . 2 15 25 . . 35 8 . . . Fabricators 5 | . . . . . . . . . . . . 5 . . . . Repair Stations 41 | . . . . . . . . 10 10 . . 17 4 . . . Recycling Units 8 | . 1 . . . . . . . 2 . . 3 2 . . . Scanalyzers 23 | . . . . . . . . . 6 . . 11 6 . . . Garrison Access 6 | . . . . . . . . . 4 . . . 2 . . . Terminal Hacks 36 | . 2 . . . 1 . 1 6 7 . . 11 1 1 . 6 Record 13 | . . . . . . . . 1 3 . . 2 1 1 . 5 Part Schematic 1 | . . . . . . . . . 1 . . . . . . . Robot Analysis 1 | . . . . . . . . . . . . 1 . . . . Prototype ID Bank 1 | . . . . . . . . 1 . . . . . . . . Open Door 1 | . . . . . . . . . . . . . . . . 1 Branch Access Points 2 | . . . . . . . 1 . 1 . . . . . . . Terminal Index 2 | . . . . . . . . . 1 . . 1 . . . . Fabricator Index 1 | . . . . . . . . . . . . 1 . . . . Alert Level 4 | . . . . . . . . 1 1 . . 2 . . . . Unreport Threat 6 | . . . . . . . . 2 . . . 4 . . . . Recall Reinforcements 1 | . . . . . . . . 1 . . . . . . . . Hauler Manifests 1 | . 1 . . . . . . . . . . . . . . . Registered Components 1 | . 1 . . . . . . . . . . . . . . . Proto ID Catalog 1 | . . . . . 1 . . . . . . . . . . . Fabricator Hacks 2 | . . . . . . . . . . . . 2 . . . . Load Schematic 1 | . . . . . . . . . . . . 1 . . . . Build 1 | . . . . . . . . . . . . 1 . . . . Repair Station Hacks 31 | . . . . . . . . 8 6 . . 15 2 . . . Scan Component 17 | . . . . . . . . 5 3 . . 8 1 . . . Repair 14 | . . . . . . . . 3 3 . . 7 1 . . . Recycling Unit Hacks 1 | . 1 . . . . . . . . . . . . . . . Retrieve Components 1 | . 1 . . . . . . . . . . . . . . . Scanalyzer 12 | . . . . . . . . . 4 . . 5 3 . . . Insert Component 6 | . . . . . . . . . 2 . . 3 1 . . . Analyze 6 | . . . . . . . . . 2 . . 2 2 . . . Garrison Access Hacks 2 | . . . . . . . . . 1 . . . 1 . . . Seal Access 2 | . . . . . . . . . 1 . . . 1 . . . Unauthorized Hacks 17 | . . . . . . . . . 8 . . 7 2 . . . Terminals 14 | . . . . . . . . . 7 . . 5 2 . . . Botnet 14 | . . . . . . . . . 7 . . 5 2 . . . Fabricators . | . . . . . . . . . . . . . . . . . Repair Stations . | . . . . . . . . . . . . . . . . . Recycling Units 3 | . . . . . . . . . 1 . . 2 . . . . Reject 1 | . . . . . . . . . 1 . . . . . . . Mask 2 | . . . . . . . . . . . . 2 . . . . Scanalyzers . | . . . . . . . . . . . . . . . . . Garrison Access . | . . . . . . . . . . . . . . . . . Data Cores Recovered 1 | . . . . . . . . . . . . 1 . . . . Used 1 | . . . . . . . . . . . . 1 . . . . Hacking Detections 50 | . 1 . 1 . . . 1 7 15 . . 17 8 . . . Full Trace Events 12 | . . . . . . . . 3 6 . . 3 . . . . Feedback Events 3 | . . . . . . . . . 1 . . 2 . . . . Corruption 2 | . . . . . . . . . 1 . . 1 . . . . Hackware Fried 1 | . . . . . . . . . . . . 1 . . . . Feedback Blocked . | . . . . . . . . . . . . . . . . . Robot Schematics Acquired . | . . . . . . . . . . . . . . . . . Robots Built . | . . . . . . . . . . . . . . . . . Authchips . | . . . . . . . . . . . . . . . . . Time . | . . . . . . . . . . . . . . . . . Total Robot Build Rating . | . . . . . . . . . . . . . . . . . Part Schematics Acquired 4 | . . . . . . . . . 2 . . 1 1 . . . Parts Built 2 | . . . . . . . . . . . . 2 . . . . Authchips . | . . . . . . . . . . . . . . . . . Time 62 | . . . . . . . . . . . . 62 . . . . Total Part Build Rating 4 | . . . . . . . . . . . . 4 . . . . Parts Repaired 13 | . . . . . . . . 3 3 . . 7 . . . . Time 567 | . . . . . . . . 114 96 . . 296 61 . . . Parts Recycled . | . . . . . . . . . . . . . . . . . Recycled Matter . | . . . . . . . . . . . . . . . . . Retrieved Matter . | . . . . . . . . . . . . . . . . . Retrieved Components 2 | . 2 . . . . . . . . . . . . . . . Parts Scanalyzed 4 | . . . . . . . . . 2 . . 2 . . . . Part Schematics Acquired 3 | . . . . . . . . . 1 . . 1 1 . . . Parts Damaged 1 | . . . . . . . . . . . . 1 . . . . Bothacking | -11 -10 -10 -9 -9 -9 -8 -8 -8 -7 -7 -7 -6 -5 -5 -5 -5 ------------ Run | Yrd Mat Min Mat Min Exi Min Mat Sto Fac Low Low Fac Fac Upp Upp War Used RIF Installer . | . . . . . . . . . . . . . . . . . Robots Hacked . | . . . . . . . . . . . . . . . . . Non-combat . | . . . . . . . . . . . . . . . . . Combat . | . . . . . . . . . . . . . . . . . Robot Hacks Applied . | . . . . . . . . . . . . . . . . . Relay Couplers Released 8 | . . . . . . . . . 4 . . 4 . . . . Programmers 8 | . . . . . . . . . 4 . . 4 . . . . Fabnet Peak Effective % . | . . . . . . . . . . . . . . . . . Robots Rewired 1 | . . . . . . . . . . 1 . . . . . . Allies Hacked . | . . . . . . . . . . . . . . . . . Hacks Repelled . | . . . . . . . . . . . . . . . . . Allies | -11 -10 -10 -9 -9 -9 -8 -8 -8 -7 -7 -7 -6 -5 -5 -5 -5 -------- Run | Yrd Mat Min Mat Min Exi Min Mat Sto Fac Low Low Fac Fac Upp Upp War Total Allies 5 | . . 2 . . . . . 2 . 1 . . . . . . Largest Group 2 | . . 2 1 . . . . 2 . 1 . . . . . . Highest-Rated Group 62 | . . 42 31 . . . . 62 . 30 . . . . . . Highest-Rated Ally 31 | . . 31 31 . . . . 31 . 30 . . . . . . Total Orders . | . . . . . . . . . . . . . . . . . Ally Attacks 45 | . . . 24 . . . . 17 . 4 . . . . . . Total Damage 793 | . . . 380 . . . . 297 . 116 . . . . . . Kills 13 | . . . 8 . . . . 4 . 1 . . . . . . Allies Corrupted . | . . . . . . . . . . . . . . . . . Allies Melted . | . . . . . . . . . . . . . . . . . Intel | -11 -10 -10 -9 -9 -9 -8 -8 -8 -7 -7 -7 -6 -5 -5 -5 -5 ------- Run | Yrd Mat Min Mat Min Exi Min Mat Sto Fac Low Low Fac Fac Upp Upp War Active Infowar (turns) 5308 | 42 197 183 692 . . . . . . 717 62 3415 . . . . Optics 4194 | . . . . . . . . . . 717 62 3415 . . . . Seismic 1114 | 42 197 183 692 . . . . . . . . . . . . . Robot Analysis Total 1 | . . . . . . . . . . . . 1 . . . . Derelict Logs Recovered 5 | . . . . 1 . . . . . 1 1 . . 1 1 . Drone Launches . | . . . . . . . . . . . . . . . . . Drone Recoveries . | . . . . . . . . . . . . . . . . . Exploration | -11 -10 -10 -9 -9 -9 -8 -8 -8 -7 -7 -7 -6 -5 -5 -5 -5 ------------- Run | Yrd Mat Min Mat Min Exi Min Mat Sto Fac Low Low Fac Fac Upp Upp War Turns Passed 22347 | 109 197 183 723 707 537 247 493 1218 6108 1112 62 5658 2055 897 456 1585 Spaces Moved 8658 | 61 109 114 358 282 224 94 224 399 2285 572 40 2341 643 265 126 521 Core 66 | 9 . . . . . . . . . . . . . . . 57 Treads 8585 | 52 109 114 358 282 224 94 224 399 2285 572 40 2341 643 265 126 457 Legs 7 | . . . . . . . . . . . . . . . . 7 Wheels . | . . . . . . . . . . . . . . . . . Hover . | . . . . . . . . . . . . . . . . . Flight . | . . . . . . . . . . . . . . . . . Fastest Speed 50 | 50 160 160 160 240 240 240 160 160 160 155 158 161 247 326 326 50 Average Speed 207 | 152 160 160 161 240 240 240 160 177 211 158 158 180 248 326 326 293 Slowest Speed 326 | 200 160 160 240 240 240 240 160 250 250 240 158 250 326 326 326 326 Overloaded Moves . | . . . . . . . . . . . . . . . . . Propulsion Burnouts . | . . . . . . . . . . . . . . . . . Robots Hopped . | . . . . . . . . . . . . . . . . . Potential Cave-ins 9 | . . . . . . . . . . . . . . . . 9 Cave-ins Triggered . | . . . . . . . . . . . . . . . . . Exploration Rate (%) 41 | 4 26 25 33 48 61 24 24 72 57 77 8 60 21 56 35 77 Regions Visited 16 Branch Regions 10 Pre-discovered Areas 1 | . . . . . . . . . . 1 . . . . . . Known Exits Taken 3 | . . . . . . . 1 . 1 . . . . . 1 . Unknown Exits Taken 13 | 1 1 1 1 1 1 1 . 1 . 1 1 1 1 1 . . Scrap Searched 8 | . . . . 1 . . . . . 4 . . . 3 . . Spaces Dug 69 | . . . . . . . . 1 23 . . 35 10 . . . Terrain Destroyed 722 | . . . 1 1 . 1 17 50 114 46 . 351 95 10 20 16 Melee 18 | . . . . . . . . 1 8 . . 9 . . . . Projectile 207 | . . . 1 1 . 1 2 17 39 3 . 94 26 10 10 3 AOE 497 | . . . . . . . 15 32 67 43 . 248 69 . 10 13 Terrain Rammed . | . . . . . . . . . . . . . . . . . Walls Destroyed . | . . . . . . . . . . . . . . . . . Machines Disabled . | . . . . . . . . . . . . . . . . . Actions | -11 -10 -10 -9 -9 -9 -8 -8 -8 -7 -7 -7 -6 -5 -5 -5 -5 --------- Run | Yrd Mat Min Mat Min Exi Min Mat Sto Fac Low Low Fac Fac Upp Upp War Total 11992 | 71 131 114 437 299 225 109 303 808 3275 711 39 3441 1051 281 144 553 Wait 2338 | . 19 . 13 . . 12 38 267 768 83 . 803 325 2 . 8 Move 8642 | 60 108 113 357 281 223 93 223 398 2284 571 39 2340 642 264 125 521 Hop . | . . . . . . . . . . . . . . . . . Pick Up 88 | 3 2 . 16 4 1 . 3 11 10 2 . 21 14 . . 1 Fast Attach 40 | 7 . . 2 . . . . 14 5 1 . 9 2 . . . Attach 31 | . . . 1 . . . 3 4 2 3 . 14 2 1 . 1 Detach 4 | . . . . . . . . 1 . . . 1 2 . . . Swap 173 | . 2 . 5 1 . 1 5 39 32 10 . 51 17 3 1 6 Drop 95 | . . . 9 5 1 . 5 21 20 1 . 20 13 . . . Fire 518 | 1 . . 34 8 . 3 26 50 133 31 . 158 30 10 18 16 Melee 29 | . . . . . . . . 2 10 . . 17 . . . . Ram . | . . . . . . . . . . . . . . . . . Kick . | . . . . . . . . . . . . . . . . . Crush 23 | . . 1 . . . . . 1 9 1 . 7 4 . . . Escape Stasis 2 | . . . . . . . . . 2 . . . . . . . Rewire 9 | . . . . . . . . . . 8 . . . 1 . . Trap . | . . . . . . . . . . . . . . . . . Miscellaneous . | . . . . . . . . . . . . . . . . . Route ------- -11/Scrapyard -10/Materials -10/Mines -9/Materials (discovered 2 exits: [*Min x2]) -9/Mines (discovered 4 exits: *Mat x2 / *Exi / [*Zio]) -9/Exiles -8/Mines -8/Materials (discovered 2 exits: *Sto x2) -8/Storage -7/Factory (discovered 3 exits: *Fac / *Low x2) -7/Lower Caves -7/Lower Caves -6/Factory -5/Factory -5/Upper Caves -5/Upper Caves -5/Warlord History --------- Turn | Location | Event 19 | -11/Scrapyard | Discovered new exit (range 15) 110 | -11/Scrapyard | Entered Materials 274 | -10/Materials | Discovered new exit (range 11) 306 | -10/Materials | Build established: Mutant 307 | -10/Materials | Entered Mines 479 | -10/Mines | Discovered new exit (range 7) 490 | -10/Mines | Entered Materials 490 | -9/Materials | Accompanied by 1 ally 490 | -9/Materials | Evolved 2 slots: Utility x1, Weapon x1 495 | -9/Materials | Led the pair of lost Derelicts to an unsafe place 745 | -9/Materials | Discovered new exit (range 8) 1058 | -9/Materials | Build established: Tank 1136 | -9/Materials | Discovered new exit (range 16) 1213 | -9/Materials | Entered Mines 1218 | -9/Mines | Joined a pair of Derelicts in attacking an 0b10 outpost 1594 | -9/Mines | Discovered new exit (range 7) 1642 | -9/Mines | Learned Materials emergency access door positions 1652 | -9/Mines | Discovered new exit (range 15) 1653 | -9/Mines | A Derelict revealed a hidden shortcut to a safe place 1908 | -9/Mines | Deemed a non-threat by the Exiles lab entrance 1911 | -9/Mines | Discovered new exit (range 5) 1920 | -9/Mines | Entered Exiles 1980 | -9/Exiles | Met 8R-AWN 2021 | -9/Exiles | Met EX-HEX 2086 | -9/Exiles | Met EX-BIN 2122 | -9/Exiles | Aligned with FarCom system 2124 | -9/Exiles | Given EX-Vault access code 2180 | -9/Exiles | Opened EX-Vault 2211 | -9/Exiles | Found Trap Reconfigurator 2260 | -9/Exiles | Warned to stay clear of 0b10 Research branches 2337 | -9/Exiles | Met EX-DEC 2436 | -9/Exiles | Discovered new exit (range 10) 2457 | -9/Exiles | Left Exiles lab with Trap Reconfigurator 2457 | -9/Exiles | Entered Mines 2680 | -8/Mines | Discovered new exit (range 9) 2704 | -8/Mines | Entered Materials 2704 | -8/Materials | Evolved 2 slots: Propulsion x1, Utility x1 2755 | -8/Materials | Build established: Skirmisher 2946 | -8/Materials | Identified exit to Storage 3197 | -8/Materials | Entered Storage 3403 | -8/Storage | Met a pair of Derelict thieves 4241 | -8/Storage | Repaired Particle Charger 4280 | -8/Storage | Repaired Arm. Treads 4320 | -8/Storage | Repaired Arm. Treads 4390 | -8/Storage | Discovered new exit (range 6) 4415 | -8/Storage | Entered Factory 4415 | -7/Factory | Evolved 2 slots: Power x1, Utility x1 4417 | -7/Factory | Build established: Tank 4983 | -7/Factory | Discovered new exit (range 15) 7265 | -7/Factory | Identified exit to Lower Caves 8373 | -7/Factory | Repaired Imp. Shield Generator 8643 | -7/Factory | Discovered new exit (range 9) 9525 | -7/Factory | Repaired Hvy. Particle Cannon? 9927 | -7/Factory | Build established: Skirmisher 10288 | -7/Factory | Repaired Hvy. Ion Cannon 10523 | -7/Factory | Entered Lower Caves 10824 | -7/Lower Caves | Build established: Tank 11068 | -7/Lower Caves | Attracted the attention of an 0b10 outpost 11163 | -7/Lower Caves | Attracted the attention of an 0b10 checkpoint 11348 | -7/Lower Caves | Spotted B-75 Beast 11549 | -7/Lower Caves | Discovered new exit (range 6) 11560 | -7/Lower Caves | Attacked by a delusional Derelict stockpiling parts 11635 | -7/Lower Caves | Entered another Lower Caves area 11637 | -7/Lower Caves | Discovered new exit (range 16) 11648 | -7/Lower Caves | Learned Factory stockpile data 11697 | -7/Lower Caves | Entered Factory 11697 | -6/Factory | Evolved 2 slots: Propulsion x1, Utility x1 12002 | -6/Factory | Build established: Skirmisher 12395 | -6/Factory | Fabricated Med. Armor Plating (x2) 12756 | -6/Factory | System Shield fried by hacking feedback 12811 | -6/Factory | Build established: Gunner 12976 | -6/Factory | Cargo convoy interrupted 13701 | -6/Factory | Build established: Mutant 14055 | -6/Factory | Garrison activated, responded to threat 14244 | -6/Factory | Build established: Tank 14484 | -6/Factory | Spotted B-75 Beast 14704 | -6/Factory | Build established: Skirmisher 14706 | -6/Factory | Repaired Arm. Treads 15222 | -6/Factory | Repaired Arm. Treads 15261 | -6/Factory | Repaired Arm. Treads 15313 | -6/Factory | Repaired Magnetic Acceleration Cannon 15388 | -6/Factory | Repaired Imp. Particle Charger 15428 | -6/Factory | Repaired Arm. Treads 15473 | -6/Factory | Repaired Hyb. Deuterium Engine 15608 | -6/Factory | Build established: Hacker-Skirmisher 16553 | -6/Factory | Discovered new exit (range 15) 16597 | -6/Factory | First assault squad dispatched 16625 | -6/Factory | Lost 5 parts (4u1w) 16872 | -6/Factory | Build established: Tank 17355 | -6/Factory | Entered another Factory area 17355 | -5/Factory | Evolved 2 slots: Utility x1, Weapon x1 19378 | -5/Factory | Discovered new exit (range 7) 19410 | -5/Factory | Entered Upper Caves 19546 | -5/Upper Caves | Entered a destroyed Warlord outpost 20007 | -5/Upper Caves | Discovered new exit (range 10) 20307 | -5/Upper Caves | Entered another Upper Caves area 20308 | -5/Upper Caves | Identified exit to Warlord 20511 | -5/Upper Caves | Learned Factory garrison access intel 20566 | -5/Upper Caves | Attracted the attention of an 0b10 checkpoint 20763 | -5/Upper Caves | Entered Warlord 20871 | -5/Warlord | System corruption cleaned by Quarantine Array 21091 | -5/Warlord | Warlord's base attacked by MAIN.C 21119 | -5/Warlord | Found Prototype Energy Cannon 21119 | -5/Warlord | Identified Vortex Driver 21441 | -5/Warlord | Warlord forces counterattacked 21718 | -5/Warlord | Found Prototype Special Weapon 21718 | -5/Warlord | Identified RU-N14's Throwing Claymores v3 21766 | -5/Warlord | Warlord base infiltrated, sounded retreat 21811 | -5/Warlord | Lost 4 allies 22002 | -5/Warlord | Destroyed 9 combat bots 22117 | -5/Warlord | Spotted Executioner 22145 | -5/Warlord | Destroyed Executioner 22282 | -5/Warlord | Spotted Striker 22320 | -5/Warlord | Released all parts (12) 22325 | -5/Warlord | Spotted Striker 22330 | -5/Warlord | Spotted Executioner 22334 | -5/Warlord | Core integrity fell below 50% 22343 | -5/Warlord | Core integrity fell below 20% 22343 | -5/Warlord | Spotted Striker 22348 | -5/Warlord | Destroyed by P-70 Sage with High-powered Shock Rifle Last Messages --------------- 22320_ Released Adv. Cooling System. 22320_ Adv. Cooling System crushed and broken. 22320_ Released Neutrino Core. 22320_ Neutrino Core crushed and broken. 22320_ Released Lyr. Heavy Armor Plating. 22320_ Lyr. Heavy Armor Plating crushed and broken. 22320_ Released Thunder Leg. 22320_ Thunder Leg crushed and broken. 22327_ X-77 Beamer knocked back. 22328_ G-50 Soldier suffers critical hit (Burn). 22329_ P-70 Sage resets G-50 Soldier, system corruption cleaned. 22329_ Knocked back. 22330_ P-80 Master resets G-50 Soldier, system corruption cleaned. 22333_ P-70 Sage resets P-80 Master, system corruption cleaned. 22335_ Critical hit (Burn: +37). [Achievement: 20k Club] Map ----- +----------------------------------------------------+ | ???????????######?# #?????#""#?????????? | | ??????????????????# #?????#""#?????????? | | ??????????????????# #### #######""#####?????? | | ?????????????????## # # "" "####### | | ?????????????????# # "" """""""" | | ?????????????????## # % "" """""""" | | #####???????????### * | | ############# # * ^ | | # ^ ^ " ^= | | # # %* | | # # # # "" """""""" | | # # # " "" """""""" | | # + " g g # "" "####### | | # # ## g;######""#####?????? | | # / ##???#""#?????????? | | # # = e! #???#""#?????????? | | # # %[ % #????""??????????? | | ###+###### """""p ##????????????????? | | #?# #????# """""% #?????????????????? | | #####?# #????# """"" e #?????????????????? | | ####### ###### * ##?????????????????? | | %% [ = #??????????????????? | | % """"" #??????????????????? | | """"" ##??????????????????? | | ###"""""#""# """"" #???????????????????? | | #?########## @ #???????????????????? | | #??????????# #???????????????????? | | #??????????# """"" #???????????????????? | | #####??????????# """"" #???????????????????? | | ???????????????#? """"" #???????????????????? | | ?????????????????? #???????????????????? | | ?????????????????? #???????????????????? | | ?????????????????? #???????????????????? | | ?????????????????? ##???????????????????? | | ?????????????????? #????????????????????? | | ????????????????? #????????????????????? | | ?????????????????? #????????????????????? | | ?????????????????? ####### #????????????????????? | | ?????????????????????????? ????????????????????? | | ?????????????????????????? ????????????????????? | | ?????????????????????????? ?????????????????????? | | ?????????????????????????????????????????????????? | | ?????????????????????????????????????????????????? | | ?????????????????????????????????????????????????? | | ?????????????????????????????????????????????????? | | ?????????????????????????????????????????????????? | | ?????????????????????????????????????????????????? | | | | | | | +----------------------------------------------------+ Best States ------------- Heat Dissipation 88 Energy Generation 24 Energy Capacity 1500 Matter Stores 300 Matter Capacity 300 Sight Range 20 Terrain Scan Density 10 Armor Coverage 825 Utility Shielding 66 Evasion (%) 50 Targeting Accuracy 5 Recoil Reduction 4 Particle Charging 20 Offensive Hacking 10 Defensive Hacking 12 Item Schematics ----------------- Huge Storage Unit | -7/Factory | Hacked Med. Armor Plating | -7/Factory | Scanalyzed Imp. Medium Armor Plating | -6/Factory | Scanalyzed Hyb. Deuterium Engine | -5/Factory | Scanalyzed Robot Schematics ------------------ None Fabricated ------------ Med. Armor Plating | x2 | -6/Factory Repaired ---------- Particle Charger | 28% | -8/Storage Arm. Treads | 43% | -8/Storage Arm. Treads | 49% | -8/Storage Imp. Shield Generator | 25% | -7/Factory Hvy. Particle Cannon | 19% | -7/Factory Hvy. Ion Cannon | 19% | -7/Factory Arm. Treads | 7% | -6/Factory Arm. Treads | 34% | -6/Factory Arm. Treads | 51% | -6/Factory Magnetic Acceleration Cannon | 44% | -6/Factory Imp. Particle Charger | 17% | -6/Factory Arm. Treads | 74% | -6/Factory Hyb. Deuterium Engine | 46% | -6/Factory Alien Tech Used ----------------- None Achievements -------------- 20k Club Ooh, Shiny! Challenges ------------ None Game ------ Seed SiegeMultitargetingCharger Manual? 0 Play Time 04:06:30 Cumulative 55.4 hours Start 2025.09.20 @ 16:01:41 End 2025.09.21 @ 11:06:50 Sessions 2 Manual Loads 0 Difficulty Rogue Special Mode None Game No. 38 Rogue 38 Adventurer 0 Explorer 0 Win Type - Total 0 Types 0/0/0/0/0/0/0/0/0/0 Lore% 14 Gallery% 35 Achievement% 34 Wizard Run 0 Options --------- Layout 1 ASCII 0 Keyboard 1 Movement Arrows Keybinds 0 Fullscreen 1 Font 24/Smallcaps Map View 50x35 Zoom Use 0% Tactical HUD 1 Map Filters NONE Filters NONE Steam 1 RUN: 8a0189d7-281d-4864-84c5-6ea694d8ef39